[Event "VI Sunway Sitges Open 2019"]
[Site "Sitges"]
[Date "2019.12.17"]
[Round "5.35"]
[White "Krishnater Kushager"]
[Black "Karthikeyan, Murali"]
[Result "0-1"]
[ECO "E11"]
[WhiteElo "2308"]
[BlackElo "2611"]
[Annotator "ChessBase"]
[PlyCount "68"]
[EventDate "2019.12.13"]
[EventType "swiss"]
[EventCountry "ESP"]
[SourceTitle "playchess.com"]
[Source "ChessBase"]
[SourceQuality "1"]
[TimeControl "40/5400+30:1800+30"]

1. d4 {[%emt 0:00:00]} Nf6 {[%emt 0:00:00]} 2. c4 {[%emt 0:00:00]} e6 {[%emt 0:00:16]} 3. Nf3 {[%emt 0:00:00]} Nc6 {[%emt 0:01:59]} 4. g3 {[%emt 0:03:13]} Bb4+ {[%emt 0:00:15]} 5. Bd2 {[%emt 0:01:21]} Qe7 {[%emt 0:01:20]} 6. Bg2 {[%emt 0:02:28]} Bxd2+ {[%emt 0:01:53]} 7. Nbxd2 {[%emt 0:05:22]} d6 {[%emt 0:00:27]} 8. O-O {[%emt 0:01:05]} O-O {[%emt 0:01:38]} 9. Qc2 {[%emt 0:02:49]} a5 {[%emt 0:04:25]} 10. Qc3 {[%emt 0:06:19]} e5 {[%emt 0:06:09]} 11. d5 {[%emt 0:01:33]} Nb8 {[%emt 0:00:20]} 12. e4 {[%emt 0:02:56]} Nbd7 {[%emt 0:05:04]} 13. Ne1 {[%emt 0:19:11]} Nc5 {[%emt 0:03:34]} 14. Nc2 {[%emt 0:00:05]} c6 {[%emt 0:03:52]} 15. b3 {[%emt 0:02:55]} cxd5 {[%emt 0:09:16]} 16. exd5 {[%emt 0:01:03]} Bf5 {[%emt 0:02:36]} 17. a3 {[%emt 0:05:01]} b5 {[%emt 0:18:50]} 18. cxb5 {[%emt 0:03:36]} Bd3 {[%emt 0:01:18]} 19. a4 {[%emt 0:04:52]} Bxf1 {[%emt 0:01:08]} 20. Rxf1 {[%emt 0:01:06]} Qc7 {[%emt 0:10:24]} 21. Nc4 {[%emt 0:02:13]} Nfd7 {[%emt 0:00:37]} 22. N2e3 {[%emt 0:07:55]} f5 {[%emt 0:00:13]} 23. f4 {[%emt 0:00:29]} Ne4 {[%emt 0:04:13]} 24. Qc2 {[%emt 0:01:37]} Qc5 {[%emt 0:00:19]} 25. Kh1 {[%emt 0:03:56]} exf4 {[%emt 0:03:59]} 26. Nxf5 {[%emt 0:01:11]} Rxf5 {[%emt 0:00:27]} 27. Qxe4 {[%emt 0:01:51]} Rf6 {[%emt 0:00:18]} 28. gxf4 {[%emt 0:04:44]} Qb4 {[%emt 0:00:21]} 29. Qe7 {[%emt 0:04:21]} Nc5 {[%emt 0:02:17]} 30. Rg1 {[%emt 0:05:19]} Raf8 {[%emt 0:02:09]} 31. Bh3 {[%emt 0:01:40]} g6 {[%emt 0:01:14]} 32. Nxd6 {[%emt 0:01:26]} Qxb3 {[%emt 0:02:38]} 33. Ne8 {[%emt 0:02:52]} R6f7 {[%emt 0:00:09]} 34. Qxc5 {[%emt 0:00:33]} Qxh3 {[%emt 0:00:08]} 0-1

[Event "VI Sunway Sitges Open 2019"]
[Site "Sitges"]
[Date "2019.12.17"]
[Round "5.37"]
[White "Manu David Suthandram R"]
[Black "Adly, Ahmed"]
[Result "1/2-1/2"]
[ECO "B00"]
[WhiteElo "2369"]
[BlackElo "2607"]
[Annotator "ChessBase"]
[PlyCount "117"]
[EventDate "2019.12.13"]
[EventType "swiss"]
[EventCountry "ESP"]
[SourceTitle "playchess.com"]
[Source "ChessBase"]
[SourceQuality "1"]
[TimeControl "40/5400+30:1800+30"]

1. e4 {[%emt 0:00:00]} b6 {[%emt 0:07:49]} 2. Nc3 {[%emt 0:03:31]} Bb7 {[%emt 0:00:29]} 3. d4 {[%emt 0:00:30]} e6 {[%emt 0:00:03]} 4. Bd3 {[%emt 0:00:50]} g6 {[%emt 0:01:08]} 5. Nf3 {[%emt 0:01:19]} d6 {[%emt 0:00:02]} 6. Bg5 {[%emt 0:06:15]} Qc8 {[%emt 0:00:03]} 7. h4 {[%emt 0:03:35]} h6 {[%emt 0:00:16]} 8. Bf4 {[%emt 0:00:05]} Nd7 {[%emt 0:00:20]} 9. Qe2 {[%emt 0:06:28]} a6 {[%emt 0:00:24]} 10. Nd1 {[%emt 0:00:17]} Bg7 {[%emt 0:00:14]} 11. Ne3 {[%emt 0:06:08]} Ne7 {[%emt 0:04:11]} 12. Nc4 {[%emt 0:11:04]} Qb8 {[%emt 0:35:56]} 13. c3 {[%emt 0:09:39]} Nc6 {[%emt 0:06:43]} 14. Bg3 {[%emt 0:13:13]} Qd8 {[%emt 0:08:36]} 15. Ne3 {[%emt 0:07:46]} Qe7 {[%emt 0:01:33]} 16. Bc2 {[%emt 0:04:11]} Nd8 {[%emt 0:03:53]} 17. h5 {[%emt 0:02:58]} g5 {[%emt 0:00:23]} 18. O-O-O {[%emt 0:01:51]} Nc6 {[%emt 0:01:05]} 19. Bd3 {[%emt 0:01:24]} b5 {[%emt 0:00:53]} 20. Rhe1 {[%emt 0:03:21]} b4 {[%emt 0:03:47]} 21. Qc2 {[%emt 0:02:30]} bxc3 {[%emt 0:01:06]} 22. Nf5 {[%emt 0:00:55]} exf5 {[%emt 0:05:54]} 23. exf5 {[%emt 0:00:07]} cxb2+ {[%emt 0:00:14]} 24. Kb1 {[%emt 0:07:56]} Kd8 {[%emt 0:00:07]} 25. Rxe7 {[%emt 0:00:09]} Nxe7 {[%emt 0:00:02]} 26. Bc4 {[%emt 0:01:01]} Nd5 {[%emt 0:00:57]} 27. Ne5 {[%emt 0:01:30]} Rf8 {[%emt 0:03:47]} 28. Bxd5 {[%emt 0:00:06]} Bxd5 {[%emt 0:00:21]} 29. Nc6+ {[%emt 0:00:02]} Bxc6 {[%emt 0:00:18]} 30. Qxc6 {[%emt 0:00:05]} Rb8 {[%emt 0:03:54]} 31. Rd2 {[%emt 0:01:37]} Re8 {[%emt 0:00:03]} 32. f3 {[%emt 0:00:06]} Rb6 {[%emt 0:03:06]} 33. Qc4 {[%emt 0:01:12]} Nf6 {[%emt 0:00:47]} 34. Rxb2 {[%emt 0:01:45]} Rxb2+ {[%emt 0:00:02]} 35. Kxb2 {[%emt 0:00:06]} Nxh5 {[%emt 0:00:03]} 36. Bh2 {[%emt 0:00:32]} Re1 {[%emt 0:01:40]} 37. g4 {[%emt 0:00:53]} Rh1 {[%emt 0:00:22]} 38. gxh5 {[%emt 0:00:25]} Rxh2+ {[%emt 0:00:04]} 39. Kb3 {[%emt 0:00:18]} Rf2 {[%emt 0:02:11]} 40. Qxf7 {[%emt 0:00:00]} Bxd4 {[%emt 0:00:00]} 41. Kc4 {[%emt 0:01:13]} Be5 {[%emt 0:00:22]} 42. Qg8+ {[%emt 0:00:53]} Kd7 {[%emt 0:00:06]} 43. Qe6+ {[%emt 0:00:07]} Kc6 {[%emt 0:01:16]} 44. Qe8+ {[%emt 0:03:34]} Kb7 {[%emt 0:00:40]} 45. Kd5 {[%emt 0:00:16]} Rxf3 {[%emt 0:01:31]} 46. Qc6+ {[%emt 0:00:04]} Kb8 {[%emt 0:00:05]} 47. Ke6 {[%emt 0:00:05]} g4 {[%emt 0:00:46]} 48. Kd7 {[%emt 0:02:15]} d5 {[%emt 0:03:43]} 49. Qe6 {[%emt 0:12:14]} Bd6 {[%emt 0:03:19]} 50. Qxd5 {[%emt 0:04:24]} Rf4 {[%emt 0:00:01]} 51. a3 {[%emt 0:02:01]} Ka7 {[%emt 0:02:32]} 52. f6 {[%emt 0:07:22]} g3 {[%emt 0:00:47]} 53. f7 {[%emt 0:01:10]} g2 {[%emt 0:01:53]} 54. Qxg2 {[%emt 0:00:19]} Rxf7+ {[%emt 0:00:10]} 55. Kc6 {[%emt 0:01:38]} Rf5 {[%emt 0:03:24]} 56. Qg6 {[%emt 0:00:43]} Rc5+ {[%emt 0:00:59]} 57. Kd7 {[%emt 0:00:26]} Bf4 {[%emt 0:02:17]} 58. Qg1 {[%emt 0:01:25]} Kb6 {[%emt 0:00:24]} 59. Qd4 {[%emt 0:00:49]} 1/2-1/2

[Event "VI Sunway Sitges Open 2019"]
[Site "Sitges"]
[Date "2019.12.17"]
[Round "5.38"]
[White "Pablo Mari, Alejandro"]
[Black "Bjerre, Jonas Buhl"]
[Result "0-1"]
[ECO "A35"]
[WhiteElo "2356"]
[BlackElo "2526"]
[Annotator "ChessBase"]
[PlyCount "111"]
[EventDate "2019.12.13"]
[EventType "swiss"]
[EventCountry "ESP"]
[SourceTitle "playchess.com"]
[Source "ChessBase"]
[SourceQuality "1"]
[TimeControl "40/5400+30:1800+30"]

1. c4 {[%emt 0:00:00]} c5 {[%emt 0:00:00]} 2. Nf3 {[%emt 0:00:00]} Nc6 {[%emt 0:00:07]} 3. Nc3 {[%emt 0:00:06]} g6 {[%emt 0:00:35]} 4. e3 {[%emt 0:00:58]} Nf6 {[%emt 0:01:06]} 5. d4 {[%emt 0:02:25]} cxd4 {[%emt 0:00:19]} 6. exd4 {[%emt 0:00:06]} d5 {[%emt 0:00:22]} 7. cxd5 {[%emt 0:02:31]} Nxd5 {[%emt 0:00:12]} 8. Qb3 {[%emt 0:01:22]} e6 {[%emt 0:01:48]} 9. Bb5 {[%emt 0:09:29]} Bg7 {[%emt 0:00:55]} 10. O-O {[%emt 0:10:07]} O-O {[%emt 0:01:14]} 11. Rd1 {[%emt 0:09:07]} Na5 {[%emt 0:08:23]} 12. Qa3 {[%emt 0:15:37]} b6 {[%emt 0:10:39]} 13. Bg5 {[%emt 0:07:33]} f6 {[%emt 0:05:08]} 14. Bd2 {[%emt 0:00:16]} Rf7 {[%emt 0:14:51]} 15. Ne4 {[%emt 0:06:13]} Bf8 {[%emt 0:03:41]} 16. Qd3 {[%emt 0:02:32]} a6 {[%emt 0:05:25]} 17. Ba4 {[%emt 0:00:06]} Bb4 {[%emt 0:02:55]} 18. a3 {[%emt 0:21:00]} Bxd2 {[%emt 0:00:24]} 19. Nexd2 {[%emt 0:02:30]} Bb7 {[%emt 0:09:13]} 20. Rac1 {[%emt 0:01:16]} Rc8 {[%emt 0:00:57]} 21. b4 {[%emt 0:01:11]} Nc6 {[%emt 0:01:29]} 22. Bb3 {[%emt 0:00:52]} Rfc7 {[%emt 0:03:06]} 23. Qe4 {[%emt 0:01:28]} Qd7 {[%emt 0:08:22]} 24. Bxd5 {[%emt 0:00:15]} exd5 {[%emt 0:00:04]} 25. Qe1 {[%emt 0:00:08]} Kf7 {[%emt 0:03:53]} 26. Nf1 {[%emt 0:00:51]} Na7 {[%emt 0:00:28]} 27. Rxc7 {[%emt 0:01:25]} Qxc7 {[%emt 0:00:38]} 28. Qe3 {[%emt 0:00:15]} Nb5 {[%emt 0:02:16]} 29. Re1 {[%emt 0:00:45]} Qd7 {[%emt 0:01:25]} 30. Qf4 {[%emt 0:01:19]} Kg7 {[%emt 0:00:46]} 31. h4 {[%emt 0:00:29]} h5 {[%emt 0:02:28]} 32. Qe3 {[%emt 0:00:15]} Rc7 {[%emt 0:00:57]} 33. Ng3 {[%emt 0:01:24]} Nd6 {[%emt 0:00:36]} 34. Rc1 {[%emt 0:00:57]} Nc4 {[%emt 0:01:10]} 35. Qf4 {[%emt 0:00:07]} Rc8 {[%emt 0:00:08]} 36. Rc3 {[%emt 0:00:22]} Qg4 {[%emt 0:01:21]} 37. Qc1 {[%emt 0:00:53]} Re8 {[%emt 0:00:45]} 38. Nf1 {[%emt 0:00:18]} b5 {[%emt 0:01:14]} 39. Qd1 {[%emt 0:00:53]} Qf4 {[%emt 0:01:05]} 40. a4 {[%emt 0:00:00]} Qd6 {[%emt 0:00:00]} 41. axb5 {[%emt 0:01:01]} axb5 {[%emt 0:01:44]} 42. Rb3 {[%emt 0:01:54]} Bc8 {[%emt 0:10:10]} 43. Qc1 {[%emt 0:07:07]} Bg4 {[%emt 0:04:36]} 44. N3h2 {[%emt 0:02:06]} Re2 {[%emt 0:06:28]} 45. Nxg4 {[%emt 0:11:29]} hxg4 {[%emt 0:00:05]} 46. h5 {[%emt 0:00:20]} Qe6 {[%emt 0:04:36]} 47. Qf4 {[%emt 0:03:00]} Re1 {[%emt 0:01:02]} 48. f3 {[%emt 0:04:06]} g5 {[%emt 0:05:42]} 49. Qc7+ {[%emt 0:01:40]} Qf7 {[%emt 0:00:51]} 50. h6+ {[%emt 0:01:44]} Kg6 {[%emt 0:00:32]} 51. Qg3 {[%emt 0:01:02]} Rxf1+ {[%emt 0:02:59]} 52. Kxf1 {[%emt 0:00:02]} Nd2+ {[%emt 0:02:46]} 53. Kg1 {[%emt 0:00:02]} Nxb3 {[%emt 0:00:01]} 54. fxg4 Nd2 55. Qd3+ {[%emt 0:00:01]} Ne4 {[%emt 0:00:02]} 56. Qxb5 0-1

[Event "VI Sunway Sitges Open 2019"]
[Site "Sitges"]
[Date "2019.12.17"]
[Round "5.39"]
[White "Sadzikowski, Daniel"]
[Black "O`Donnell, Conor"]
[Result "1-0"]
[ECO "A13"]
[WhiteElo "2504"]
[BlackElo "2312"]
[Annotator "ChessBase"]
[PlyCount "105"]
[EventDate "2019.12.13"]
[EventType "swiss"]
[EventCountry "ESP"]
[SourceTitle "playchess.com"]
[Source "ChessBase"]
[SourceQuality "1"]
[TimeControl "40/5400+30:1800+30"]

1. c4 {[%emt 0:00:00]} e6 {[%emt 0:00:00]} 2. g3 {[%emt 0:00:00]} d5 {[%emt 0:00:26]} 3. Bg2 {[%emt 0:00:00]} dxc4 {[%emt 0:00:46]} 4. Qa4+ {[%emt 0:00:00]} Nd7 {[%emt 0:00:14]} 5. Qxc4 {[%emt 0:00:31]} a6 {[%emt 0:07:00]} 6. Qc2 {[%emt 0:01:20]} Ngf6 {[%emt 0:04:07]} 7. Nc3 {[%emt 0:00:04]} Be7 {[%emt 0:04:16]} 8. Nf3 {[%emt 0:00:58]} O-O {[%emt 0:00:15]} 9. O-O {[%emt 0:03:36]} Rb8 {[%emt 0:02:48]} 10. d4 {[%emt 0:02:40]} b5 {[%emt 0:04:13]} 11. Ne5 {[%emt 0:03:27]} Nxe5 {[%emt 0:01:31]} 12. dxe5 {[%emt 0:00:03]} Nd7 {[%emt 0:00:56]} 13. Rd1 {[%emt 0:01:45]} c5 {[%emt 0:05:20]} 14. Ne4 {[%emt 0:02:46]} Bb7 {[%emt 0:05:32]} 15. Bf4 {[%emt 0:07:36]} Bd5 {[%emt 0:07:52]} 16. Nf6+ {[%emt 0:06:35]} gxf6 {[%emt 0:06:56]} 17. exf6 {[%emt 0:00:07]} Nxf6 {[%emt 0:01:32]} 18. e4 {[%emt 0:00:45]} Rb6 {[%emt 0:07:27]} 19. exd5 {[%emt 0:09:39]} Nxd5 {[%emt 0:03:25]} 20. Rd2 {[%emt 0:08:04]} Bg5 {[%emt 0:05:31]} 21. Bxg5 {[%emt 0:02:37]} Qxg5 {[%emt 0:00:04]} 22. Bxd5 {[%emt 0:00:06]} exd5 {[%emt 0:00:24]} 23. h4 {[%emt 0:00:26]} Qe7 {[%emt 0:03:01]} 24. Rxd5 {[%emt 0:00:14]} c4 {[%emt 0:01:06]} 25. Rad1 {[%emt 0:02:39]} Re6 {[%emt 0:02:00]} 26. a4 {[%emt 0:05:20]} Re5 {[%emt 0:07:37]} 27. axb5 {[%emt 0:05:58]} axb5 {[%emt 0:00:27]} 28. Qc3 {[%emt 0:12:24]} Re8 {[%emt 0:02:33]} 29. R1d4 {[%emt 0:00:36]} Qe6 {[%emt 0:08:25]} 30. Rd8 {[%emt 0:07:19]} h5 {[%emt 0:04:56]} 31. Qd2 {[%emt 0:07:14]} Re1+ {[%emt 0:04:17]} 32. Kh2 {[%emt 0:00:22]} Rxd8 {[%emt 0:00:30]} 33. Qg5+ {[%emt 0:02:50]} Qg6 {[%emt 0:00:03]} 34. Rxd8+ {[%emt 0:02:07]} Kg7 {[%emt 0:00:13]} 35. Qc5 {[%emt 0:04:41]} Kh7 {[%emt 0:01:15]} 36. Rd5 {[%emt 0:00:57]} Kh6 {[%emt 0:00:29]} 37. Qf8+ {[%emt 0:00:41]} Kh7 {[%emt 0:00:15]} 38. Qc5 {[%emt 0:00:57]} Qf6 {[%emt 0:00:43]} 39. Rxh5+ {[%emt 0:00:17]} Kg7 {[%emt 0:00:18]} 40. Rg5+ {[%emt 0:00:00]} Kh7 {[%emt 0:00:00]} 41. Rf5 {[%emt 0:03:39]} Qe6 {[%emt 0:04:08]} 42. Rh5+ {[%emt 0:00:27]} Kg7 {[%emt 0:00:55]} 43. Qg5+ {[%emt 0:00:16]} Qg6 {[%emt 0:00:08]} 44. Qxb5 {[%emt 0:00:15]} Qe4 {[%emt 0:01:07]} 45. Qg5+ {[%emt 0:00:45]} Qg6 {[%emt 0:00:10]} 46. Qc5 {[%emt 0:01:23]} Qe4 {[%emt 0:00:37]} 47. Rg5+ {[%emt 0:03:32]} Kh7 {[%emt 0:00:33]} 48. Qf5+ {[%emt 0:00:05]} Qxf5 {[%emt 0:00:08]} 49. Rxf5 {[%emt 0:00:03]} Kg6 {[%emt 0:00:10]} 50. Rc5 {[%emt 0:00:45]} Re2 {[%emt 0:00:41]} 51. Kg2 {[%emt 0:00:06]} Rxb2 {[%emt 0:00:25]} 52. Rxc4 {[%emt 0:00:05]} f6 {[%emt 0:00:49]} 53. g4 {[%emt 0:01:49]} 1-0

[Event "VI Sunway Sitges Open 2019"]
[Site "Sitges"]
[Date "2019.12.17"]
[Round "5.40"]
[White "Sarkar, Justin"]
[Black "Lobanov, Sergei"]
[Result "1/2-1/2"]
[ECO "D90"]
[WhiteElo "2360"]
[BlackElo "2504"]
[Annotator "ChessBase"]
[PlyCount "91"]
[EventDate "2019.12.13"]
[EventType "swiss"]
[EventCountry "ESP"]
[SourceTitle "playchess.com"]
[Source "ChessBase"]
[SourceQuality "1"]
[TimeControl "40/5400+30:1800+30"]

1. d4 {[%emt 0:00:00]} Nf6 {[%emt 0:11:31]} 2. c4 {[%emt 0:00:00]} g6 {[%emt 0:00:04]} 3. Nc3 {[%emt 0:00:26]} d5 {[%emt 0:00:05]} 4. Nf3 {[%emt 0:09:15]} Bg7 {[%emt 0:00:07]} 5. Qa4+ {[%emt 0:14:01]} c6 {[%emt 0:04:49]} 6. cxd5 {[%emt 0:00:17]} Nxd5 {[%emt 0:00:04]} 7. e4 {[%emt 0:00:27]} Nb6 {[%emt 0:02:00]} 8. Qc2 {[%emt 0:10:16]} Bg4 {[%emt 0:02:51]} 9. Ne5 {[%emt 0:00:48]} Be6 {[%emt 0:00:59]} 10. Be3 {[%emt 0:00:33]} O-O {[%emt 0:00:10]} 11. Rd1 {[%emt 0:19:08]} N8d7 {[%emt 0:04:18]} 12. Nf3 {[%emt 0:00:41]} Qc7 {[%emt 0:13:18]} 13. Be2 {[%emt 0:02:56]} Bc4 {[%emt 0:06:52]} 14. O-O {[%emt 0:01:41]} Rac8 {[%emt 0:00:02]} 15. e5 {[%emt 0:16:08]} Bxe2 {[%emt 0:04:09]} 16. Qxe2 {[%emt 0:00:19]} Nd5 {[%emt 0:00:32]} 17. Nxd5 {[%emt 0:03:26]} cxd5 {[%emt 0:04:12]} 18. Rc1 {[%emt 0:00:03]} Qb6 {[%emt 0:02:04]} 19. h4 {[%emt 0:00:54]} h5 {[%emt 0:05:09]} 20. Ng5 {[%emt 0:03:08]} Rxc1 {[%emt 0:07:28]} 21. Rxc1 {[%emt 0:00:11]} Nb8 {[%emt 0:01:42]} 22. g4 {[%emt 0:11:30]} f6 {[%emt 0:04:15]} 23. exf6 {[%emt 0:00:08]} exf6 {[%emt 0:00:03]} 24. Nh3 {[%emt 0:00:09]} Qe6 {[%emt 0:11:57]} 25. Nf4 {[%emt 0:00:07]} Qxg4+ {[%emt 0:00:04]} 26. Qxg4 {[%emt 0:00:03]} hxg4 {[%emt 0:00:01]} 27. Ne6 {[%emt 0:01:00]} Re8 {[%emt 0:00:13]} 28. Nxg7 {[%emt 0:00:07]} Kxg7 {[%emt 0:00:01]} 29. Rc7+ {[%emt 0:00:07]} Kg8 {[%emt 0:00:01]} 30. Rxb7 {[%emt 0:00:08]} Nc6 {[%emt 0:00:02]} 31. Rc7 {[%emt 0:02:15]} Re6 {[%emt 0:00:22]} 32. Rd7 {[%emt 0:00:38]} Re4 {[%emt 0:04:03]} 33. Rxd5 {[%emt 0:00:56]} Kf7 {[%emt 0:00:02]} 34. h5 {[%emt 0:03:14]} gxh5 {[%emt 0:04:29]} 35. Rxh5 {[%emt 0:00:12]} Kg6 {[%emt 0:00:01]} 36. Rd5 {[%emt 0:00:44]} Nb4 {[%emt 0:01:49]} 37. Rc5 {[%emt 0:01:29]} Nxa2 {[%emt 0:00:09]} 38. d5 {[%emt 0:00:12]} Kf5 {[%emt 0:03:01]} 39. Rc7 {[%emt 0:01:21]} Ke5 {[%emt 0:00:52]} 40. Rxa7 {[%emt 0:00:00]} Nb4 {[%emt 0:00:00]} 41. Re7+ {[%emt 0:06:01]} Kxd5 {[%emt 0:00:35]} 42. Rxe4 {[%emt 0:00:17]} Kxe4 {[%emt 0:00:02]} 43. Bc5 {[%emt 0:00:09]} Nd3 {[%emt 0:00:31]} 44. b4 {[%emt 0:00:14]} Kf3 {[%emt 0:00:21]} 45. Bd4 {[%emt 0:02:33]} Nxb4 {[%emt 0:01:57]} 46. Bxf6 {[%emt 0:00:04]} 1/2-1/2

[Event "VI Sunway Sitges Open 2019"]
[Site "Sitges"]
[Date "2019.12.17"]
[Round "5.41"]
[White "Rafiee, Makan"]
[Black "Iniyan, P."]
[Result "1/2-1/2"]
[ECO "B81"]
[WhiteElo "2335"]
[BlackElo "2497"]
[Annotator "ChessBase"]
[PlyCount "61"]
[EventDate "2019.12.13"]
[EventType "swiss"]
[EventCountry "ESP"]
[SourceTitle "playchess.com"]
[Source "ChessBase"]
[SourceQuality "1"]
[TimeControl "40/5400+30:1800+30"]

1. e4 {[%emt 0:00:00]} c5 {[%emt 0:00:00]} 2. Nf3 {[%emt 0:00:00]} d6 {[%emt 0:00:00]} 3. d4 {[%emt 0:00:00]} cxd4 {[%emt 0:00:00]} 4. Nxd4 {[%emt 0:00:00]} Nf6 {[%emt 0:00:01]} 5. Nc3 {[%emt 0:00:00]} e6 {[%emt 0:00:05]} 6. g4 {[%emt 0:04:32]} h6 {[%emt 0:00:08]} 7. Rg1 {[%emt 0:02:14]} Nc6 {[%emt 0:00:45]} 8. Be3 {[%emt 0:01:09]} Be7 {[%emt 0:02:05]} 9. f3 {[%emt 0:07:07]} a6 {[%emt 0:01:32]} 10. Qd2 {[%emt 0:00:16]} Nd7 {[%emt 0:16:20]} 11. O-O-O {[%emt 0:04:08]} Na5 {[%emt 0:00:07]} 12. Kb1 {[%emt 0:36:27]} Ne5 {[%emt 0:04:04]} 13. Qf2 {[%emt 0:02:02]} Nec4 {[%emt 0:02:53]} 14. Bc1 {[%emt 0:01:08]} Qb6 {[%emt 0:00:56]} 15. Rg2 {[%emt 0:00:52]} Bf6 {[%emt 0:01:23]} 16. Nb3 {[%emt 0:05:10]} Qc7 {[%emt 0:04:58]} 17. Nxa5 {[%emt 0:01:39]} Nxa5 {[%emt 0:00:15]} 18. Bf4 {[%emt 0:01:08]} Be5 {[%emt 0:02:04]} 19. Bxe5 {[%emt 0:00:17]} dxe5 {[%emt 0:00:07]} 20. Na4 {[%emt 0:03:47]} b5 {[%emt 0:01:13]} 21. Qc5 {[%emt 0:02:03]} Ra7 {[%emt 0:09:08]} 22. Rgd2 {[%emt 0:00:47]} Qxc5 {[%emt 0:06:52]} 23. Nxc5 {[%emt 0:01:09]} Nc6 {[%emt 0:00:06]} 24. c3 {[%emt 0:02:13]} Ke7 {[%emt 0:00:16]} 25. b4 {[%emt 0:00:48]} Nb8 {[%emt 0:07:46]} 26. Rd6 {[%emt 0:03:35]} Rc7 {[%emt 0:02:17]} 27. Kb2 {[%emt 0:01:53]} Nc6 {[%emt 0:02:43]} 28. R6d2 {[%emt 0:00:12]} Nb8 {[%emt 0:00:09]} 29. Rd6 {[%emt 0:04:21]} Nc6 {[%emt 0:00:01]} 30. R6d2 {[%emt 0:00:19]} Nb8 {[%emt 0:00:02]} 31. Rd6 {[%emt 0:03:01]} 1/2-1/2

[Event "VI Sunway Sitges Open 2019"]
[Site "Sitges"]
[Date "2019.12.17"]
[Round "5.42"]
[White "Divya Deshmukh"]
[Black "Zanan, Evgeny"]
[Result "0-1"]
[ECO "C70"]
[WhiteElo "2332"]
[BlackElo "2493"]
[Annotator "ChessBase"]
[PlyCount "74"]
[EventDate "2019.12.13"]
[EventType "swiss"]
[EventCountry "ESP"]
[SourceTitle "playchess.com"]
[Source "ChessBase"]
[SourceQuality "1"]
[TimeControl "40/5400+30:1800+30"]

1. e4 {[%emt 0:00:00]} e5 {[%emt 0:12:53]} 2. Nf3 {[%emt 0:00:00]} Nc6 {[%emt 0:00:03]} 3. Bb5 {[%emt 0:00:00]} g6 {[%emt 0:00:05]} 4. c3 {[%emt 0:00:00]} a6 {[%emt 0:01:06]} 5. Ba4 {[%emt 0:00:00]} Bg7 {[%emt 0:00:26]} 6. d4 {[%emt 0:00:13]} exd4 {[%emt 0:00:04]} 7. cxd4 {[%emt 0:00:16]} b5 {[%emt 0:00:07]} 8. Bc2 {[%emt 0:00:18]} d6 {[%emt 0:00:10]} 9. h3 {[%emt 0:00:23]} Nge7 {[%emt 0:00:11]} 10. O-O {[%emt 0:00:17]} O-O {[%emt 0:00:13]} 11. a4 {[%emt 0:11:01]} Bb7 {[%emt 0:03:08]} 12. Nc3 {[%emt 0:03:43]} b4 {[%emt 0:08:11]} 13. Ne2 {[%emt 0:00:24]} Na5 {[%emt 0:00:09]} 14. b3 {[%emt 0:09:44]} Qd7 {[%emt 0:15:22]} 15. Ng3 {[%emt 0:10:48]} c5 {[%emt 0:05:08]} 16. Bf4 {[%emt 0:05:29]} cxd4 {[%emt 0:07:47]} 17. Nxd4 {[%emt 0:06:03]} d5 {[%emt 0:00:39]} 18. e5 {[%emt 0:07:48]} Nac6 {[%emt 0:08:14]} 19. Re1 {[%emt 0:07:15]} Nxd4 {[%emt 0:03:50]} 20. Qxd4 {[%emt 0:00:10]} Nc6 {[%emt 0:00:03]} 21. Qd3 {[%emt 0:07:41]} Rfe8 {[%emt 0:05:35]} 22. Nh5 {[%emt 0:02:32]} Bh8 {[%emt 0:01:08]} 23. Nf6+ {[%emt 0:17:44]} Bxf6 {[%emt 0:01:01]} 24. exf6 {[%emt 0:00:00]} Re6 {[%emt 0:00:32]} 25. Bg5 {[%emt 0:00:58]} Rae8 {[%emt 0:00:54]} 26. Red1 {[%emt 0:02:37]} d4 {[%emt 0:02:30]} 27. Qg3 {[%emt 0:01:20]} Qd5 {[%emt 0:08:58]} 28. Rac1 {[%emt 0:01:40]} Ne5 {[%emt 0:05:16]} 29. Rd2 {[%emt 0:00:52]} Rc6 {[%emt 0:01:49]} 30. f4 {[%emt 0:04:33]} Rc3 {[%emt 0:02:43]} 31. Qf2 {[%emt 0:00:08]} Nf3+ {[%emt 0:01:52]} 32. gxf3 {[%emt 0:00:04]} Rxf3 {[%emt 0:00:03]} 33. Re1 {[%emt 0:01:52]} Rxe1+ {[%emt 0:02:10]} 34. Qxe1 {[%emt 0:00:05]} Re3 {[%emt 0:00:02]} 35. Qxe3 {[%emt 0:00:37]} Qh1+ {[%emt 0:00:04]} 36. Kf2 {[%emt 0:00:01]} dxe3+ {[%emt 0:00:14]} 37. Kxe3 {[%emt 0:00:01]} Qf3+ {[%emt 0:00:06]} 0-1

[Event "VI Sunway Sitges Open 2019"]
[Site "Sitges"]
[Date "2019.12.17"]
[Round "5.43"]
[White "Garriga Cazorla, Pere"]
[Black "Samant Aditya S"]
[Result "1-0"]
[ECO "E01"]
[WhiteElo "2484"]
[BlackElo "2309"]
[Annotator "ChessBase"]
[PlyCount "73"]
[EventDate "2019.12.13"]
[EventType "swiss"]
[EventCountry "ESP"]
[SourceTitle "playchess.com"]
[Source "ChessBase"]
[SourceQuality "1"]
[TimeControl "40/5400+30:1800+30"]

1. Nf3 {[%emt 0:00:04]} Nf6 {[%emt 0:00:09]} 2. g3 {[%emt 0:01:10]} d5 {[%emt 0:02:17]} 3. c4 {[%emt 0:03:10]} e6 {[%emt 0:00:31]} 4. Bg2 {[%emt 0:01:04]} c6 {[%emt 0:03:51]} 5. b3 {[%emt 0:02:32]} Bd6 {[%emt 0:01:10]} 6. O-O {[%emt 0:02:00]} O-O {[%emt 0:00:22]} 7. d4 {[%emt 0:01:19]} Nbd7 {[%emt 0:03:52]} 8. Nc3 {[%emt 0:01:09]} b6 {[%emt 0:03:38]} 9. Qc2 {[%emt 0:01:34]} Bb7 {[%emt 0:00:33]} 10. Rd1 {[%emt 0:02:46]} Qe7 {[%emt 0:08:11]} 11. Bb2 {[%emt 0:01:06]} Rac8 {[%emt 0:03:49]} 12. e4 {[%emt 0:04:52]} Nxe4 {[%emt 0:02:53]} 13. Nxe4 {[%emt 0:00:23]} dxe4 {[%emt 0:00:08]} 14. Qxe4 {[%emt 0:00:24]} Rfe8 {[%emt 0:15:32]} 15. h4 {[%emt 0:12:19]} Ba3 {[%emt 0:03:03]} 16. Bxa3 {[%emt 0:14:09]} Qxa3 {[%emt 0:00:07]} 17. Rd2 {[%emt 0:02:27]} Nf6 {[%emt 0:02:18]} 18. Qf4 {[%emt 0:02:18]} c5 {[%emt 0:02:56]} 19. Ne5 {[%emt 0:00:27]} Bxg2 {[%emt 0:01:15]} 20. Kxg2 {[%emt 0:00:02]} cxd4 {[%emt 0:07:26]} 21. Rxd4 {[%emt 0:00:17]} Qc5 {[%emt 0:11:06]} 22. Rad1 {[%emt 0:04:22]} Qe7 {[%emt 0:04:58]} 23. g4 {[%emt 0:03:12]} h6 {[%emt 0:08:31]} 24. f3 {[%emt 0:08:17]} Rf8 {[%emt 0:01:39]} 25. g5 {[%emt 0:03:21]} Nh5 {[%emt 0:04:50]} 26. Qg4 {[%emt 0:00:37]} g6 {[%emt 0:00:31]} 27. Rd7 {[%emt 0:03:41]} Qc5 {[%emt 0:02:48]} 28. Qe4 {[%emt 0:00:05]} hxg5 {[%emt 0:05:24]} 29. hxg5 {[%emt 0:02:22]} Ng7 {[%emt 0:00:32]} 30. b4 {[%emt 0:04:57]} Qxb4 {[%emt 0:00:25]} 31. Ng4 {[%emt 0:00:04]} Nh5 {[%emt 0:00:42]} 32. Nh6+ {[%emt 0:00:33]} Kh7 {[%emt 0:00:27]} 33. Nxf7 {[%emt 0:01:25]} Qb2+ {[%emt 0:00:09]} 34. Kg1 {[%emt 0:00:08]} Ng7 {[%emt 0:00:51]} 35. Ne5 {[%emt 0:01:25]} Kg8 {[%emt 0:00:34]} 36. Rxg7+ {[%emt 0:00:10]} Kxg7 {[%emt 0:00:06]} 37. Rd7+ {[%emt 0:00:04]} 1-0